fUSD/lending_fUSD_20250311
["ID","MTS","AMOUNT","RATE_DAILY","PERIOD"]
[355951507,1741728654347,-500.0,9.536e-05,2]
[355951508,1741728654356,-595.58,9.536e-05,2]
[355951509,1741728654366,-500.0,9.536e-05,2]
[355951510,1741728654375,-521.48,9.536e-05,2]
[355951511,1741728654384,-162.70866393,9.536e-05,2]
[355951512,1741728654394,-500.0,9.536e-05,2]
[355951513,1741728654404,-46.50126676,9.536e-05,2]
[355951514,1741728654643,-832.0,9.536e-05,2]
[355951515,1741728654806,-334.83873324,9.536e-05,2]
[355951516,1741728654818,-500.0,9.536e-05,2]
[355951517,1741728654828,-500.0,9.536e-05,2]
[355951518,1741728654837,-1098.95,9.536e-05,2]
[355951519,1741728654847,-500.0,9.536e-05,2]
[355951520,1741728654856,-500.0,9.536e-05,2]
[355951521,1741728654866,-500.0,9.536e-05,2]
[355951522,1741728654875,-840.0,9.536e-05,2]
[355951523,1741728654884,-500.0,9.536e-05,2]
[355951524,1741728654894,-4889.68335525,9.585e-05,2]
[355951525,1741728654903,-1110.28,9.589e-05,2]
[355951526,1741728654912,-1000.0,9.758e-05,2]
[355951527,1741728654921,-379.7,9.767e-05,2]
[355951528,1741728654931,-196.55,9.767e-05,2]
[355951529,1741728654940,-4786.58906358,9.79e-05,2]
[355951530,1741728654949,-500.0,9.807e-05,2]
[355951531,1741728654959,-772.23,9.807e-05,2]
[355951532,1741728654968,-1508.05,9.807e-05,2]
[355951533,1741728654977,-500.0,9.807e-05,2]
[355951534,1741728654987,-862.75,9.807e-05,2]
[355951535,1741728654995,-500.0,9.807e-05,2]
[355951536,1741728655005,-502.88,9.807e-05,2]
[355951537,1741728655015,-1862.65,9.807e-05,2]
[355951538,1741728655025,-942.96,9.807e-05,2]
[355951539,1741728655034,-1030.98,9.807e-05,2]
[355951540,1741728655043,-500.0,9.807e-05,2]
[355951541,1741728655052,-614.13,9.807e-05,2]
[355951542,1741728655062,-1603.64,9.807e-05,2]
[355951543,1741728655071,-589.63,9.807e-05,2]
[355951544,1741728655079,-512.13,9.807e-05,2]
[355951545,1741728655089,-500.0,9.807e-05,2]
[355951546,1741728655098,-578.13,9.807e-05,2]
[355951547,1741728655108,-500.0,9.807e-05,2]
[355951548,1741728655117,-500.0,9.807e-05,2]
[355951549,1741728655126,-548.99,9.807e-05,2]
[355951550,1741728655136,-500.0,9.807e-05,2]
[355951551,1741728655145,-500.0,9.808e-05,2]
[355951552,1741728655158,-500.0,9.808e-05,2]
[355951553,1741728655167,-757.05,9.808e-05,2]
[355951554,1741728655177,-763.65,9.808e-05,2]
[355951555,1741728655187,-483.66370815,9.808e-05,2]
[355951556,1741728658743,8251.85989391,8.855e-05,2]
[355951557,1741728696992,36381.702,8.888e-05,2]
[355951558,1741728746342,3135.59,8.689e-05,2]
[355951559,1741728844502,-500.0,0.0001118,14]
[355951560,1741728844555,-500.0,0.00011454,14]
[355951561,1741728844609,-500.0,0.00011728,14]
[355951562,1741728844662,-500.0,0.00012002,14]
[355951563,1741728882300,-5000000.0,0.00028535,30]
[355951564,1741728884195,413.77,8.615e-05,2]
[355951565,1741728887092,-5000000.0,0.00028535,30]
[355951566,1741728895347,-9341953.65309301,0.00028535,30]
[355951567,1741728895380,-50000.0,0.00028535,30]
[355951568,1741728895411,-50000.0,0.00028535,31]
[355951569,1741728895441,-50000.0,0.00028535,32]
[355951570,1741728895472,-50000.0,0.00028535,33]
[355951571,1741728895503,-50000.0,0.00028535,34]
[355951572,1741728895532,-1652.28143812,0.00028535,120]
[355951573,1741728962134,290.0,8.64e-05,2]
[355951575,1741728975848,-500.0,0.00012276,14]
[355951576,1741728975900,-500.0,0.0001255,14]
[355951577,1741728975953,-500.0,0.00012824,14]
[355951578,1741728976005,-500.0,0.00013098,14]
[355951579,1741728987150,-500.0,0.00013372,14]
[355951580,1741729078082,-500.0,8.988e-05,7]
[355951581,1741729078132,-200.0,9.262e-05,7]
[355951582,1741729079567,-300.0,9.262e-05,7]
[355951583,1741729079617,-400.0,9.536e-05,7]
[355951584,1741729185707,174.39,8.829e-05,2]
[355951585,1741729271330,250.0,8.508e-05,2]
[355951586,1741729370390,950.22471323,8.887e-05,2]
[355951587,1741729370732,950.22471323,8.887e-05,2]
[355951588,1741729378850,1379.0,8.219e-05,2]
[355951589,1741729395289,-150.0,8.986e-05,2]
[355951590,1741729395311,-300.0,8.986e-05,2]
[355951591,1741729395334,-150.0,8.987e-05,2]
[355951592,1741729395357,-485.21,8.987e-05,2]
[355951593,1741729399219,-500.0,8.987e-05,2]
[355951594,1741729406153,619.52,8.69e-05,2]
[355951597,1741729433528,-310.04850421,9.259e-05,14]
[355951600,1741729484641,420.77,8.5e-05,2]
[355951601,1741729487405,-300.0,8.986e-05,2]
[355951602,1741729487429,-200.0,8.987e-05,2]
[355951603,1741729489660,-277.52,8.987e-05,2]
[355951606,1741729605120,-500.0,0.00013699,13]
[355951607,1741729605148,-500.0,0.00013699,13]
[355951608,1741729605176,-200.0,0.00013699,13]
[355951611,1741729655388,273.58,8.538e-05,2]
[355951612,1741729655776,273.58,8.561e-05,2]
[355951613,1741729655976,273.58,8.583e-05,2]
[355951614,1741729656198,273.58,8.606e-05,2]
[355951615,1741729656409,273.58,8.628e-05,2]
[355951616,1741729656698,273.58,8.651e-05,2]
[355951617,1741729656925,273.58,8.673e-05,2]
[355951618,1741729657127,273.58,8.695e-05,2]
[355951619,1741729657351,273.58,8.718e-05,2]
[355951620,1741729657761,273.58,8.74e-05,2]
[355951621,1741729657976,273.58,8.763e-05,2]
[355951622,1741729658483,273.58,8.785e-05,2]
[355951623,1741729658554,273.58,8.808e-05,2]
[355951624,1741729658654,273.58,8.83e-05,2]
[355951625,1741729658878,273.58,8.853e-05,2]
[355951626,1741729659080,273.58,8.875e-05,2]
[355951627,1741729659329,273.58,8.898e-05,2]
[355951634,1741729832185,-273.58,8.92e-05,2]
[355951635,1741729832194,-273.58,8.943e-05,2]
[355951636,1741729832204,-273.58,8.965e-05,2]
[355951637,1741729832213,-140.4609527,8.986e-05,2]
[355951638,1741729832224,-9.5390473,8.986e-05,2]
[355951639,1741729832233,-300.0,8.986e-05,2]
[355951640,1741729832247,-189.2637407,8.987e-05,2]
[355951641,1741729832258,-692.5626787,8.987e-05,2]
[355951642,1741729832270,-4386.72088947,8.987e-05,2]
[355951643,1741729832280,-550.0,8.988e-05,2]
[355951644,1741729832289,-654.06,8.988e-05,2]
[355951645,1741729832298,-635.02,8.988e-05,2]
[355951646,1741729832307,-1090.58,8.988e-05,2]
[355951647,1741729832317,-500.0,8.988e-05,2]
[355951648,1741729832327,-868.41,8.988e-05,2]
[355951649,1741729832336,-500.0,8.988e-05,2]
[355951650,1741729832346,-500.0,8.988e-05,2]
[355951651,1741729832355,-644.83,8.988e-05,2]
[355951652,1741729832365,-1020.95,8.988e-05,2]
[355951653,1741729832375,-500.0,8.988e-05,2]
[355951654,1741729832383,-117.92908053,8.988e-05,2]
[355951655,1741729832432,-565.39091947,8.988e-05,2]
[355951656,1741729832442,-500.0,8.988e-05,2]
[355951657,1741729832451,-500.0,8.988e-05,2]
[355951658,1741729832460,-32.2906525,8.988e-05,2]
[355951659,1741729832498,-405.4,8.988e-05,2]
[355951660,1741729832510,-62.3093475,8.988e-05,2]
[355951661,1741729832519,-324.82287783,8.988e-05,2]
[355951662,1741729832544,-175.17712217,8.988e-05,2]
[355951663,1741729832553,-500.0,8.988e-05,2]
[355951664,1741729832562,-617.64,8.988e-05,2]
[355951665,1741729832572,-500.0,8.988e-05,2]
[355951666,1741729832581,-500.0,8.988e-05,2]
[355951667,1741729832590,-673.86,8.988e-05,2]
[355951668,1741729832599,-500.0,8.988e-05,2]
[355951669,1741729832608,-365.25785454,8.988e-05,2]
[355951670,1741729832622,-665.63214546,8.988e-05,2]
[355951671,1741729832631,-461.52885454,8.988e-05,2]
[355951672,1741729832643,-69.18114546,8.988e-05,2]
[355951674,1741729832652,-507.00785316,8.988e-05,2]
[355951676,1741729832661,-156.09805742,8.988e-05,2]
[355951678,1741729832672,-489.32759048,8.988e-05,2]
[355951680,1741729832682,-500.0,8.988e-05,2]
[355951682,1741729832691,-500.0,8.988e-05,2]
[355951684,1741729832700,-505.62178398,8.988e-05,2]
[355951686,1741729832709,-500.0,8.988e-05,2]
[355951688,1741729832719,-500.0,8.988e-05,2]
[355951690,1741729832729,-500.0,8.988e-05,2]
[355951692,1741729832738,-500.0,8.988e-05,2]
[355951694,1741729832748,-500.0,8.988e-05,2]
[355951696,1741729832758,-500.69,8.988e-05,2]
[355951698,1741729832767,-500.0,8.988e-05,2]
[355951700,1741729832776,-536.77,8.988e-05,2]
[355951702,1741729832786,-500.0,8.988e-05,2]
[355951704,1741729832795,-500.0,8.988e-05,2]
[355951706,1741729832805,-500.0,8.988e-05,2]
[355951708,1741729832815,-500.0,8.988e-05,2]
[355951710,1741729832824,-500.0,8.988e-05,2]
[355951712,1741729832834,-1078.05,8.988e-05,2]
[355951714,1741729832843,-676.53,8.988e-05,2]
[355951716,1741729832853,-500.0,8.988e-05,2]
[355951718,1741729832862,-500.0,8.988e-05,2]
[355951720,1741729832872,-500.0,8.988e-05,2]
[355951722,1741729832882,-500.0,8.988e-05,2]
[355951724,1741729832891,-1289.61,8.988e-05,2]
[355951726,1741729832900,-505.86,8.988e-05,2]
[355951728,1741729832910,-500.0,8.988e-05,2]
[355951730,1741729832919,-500.0,8.988e-05,2]
[355951732,1741729832929,-500.0,8.988e-05,2]
[355951734,1741729832938,-500.0,8.988e-05,2]
[355951736,1741729832947,-500.0,8.988e-05,2]
[355951737,1741729832956,-500.0,8.988e-05,2]
[355951738,1741729832965,-784.21,8.988e-05,2]
[355951739,1741729832974,-500.0,8.988e-05,2]
[355951740,1741729832984,-500.0,8.988e-05,2]
[355951741,1741729832993,-500.0,8.988e-05,2]
[355951742,1741729833002,-817.96,8.988e-05,2]
[355951743,1741729833011,-755.7,8.988e-05,2]
[355951744,1741729833020,-500.00000034,8.988e-05,2]
[355951745,1741729833030,-500.0,8.988e-05,2]
[355951746,1741729833040,-500.0,8.988e-05,2]
[355951747,1741729833051,-992.25,8.988e-05,2]
[355951748,1741729833061,-500.0,8.988e-05,2]
[355951749,1741729833070,-500.0,8.988e-05,2]
[355951750,1741729833080,-500.0,8.988e-05,2]
[355951751,1741729833090,-698.57,8.988e-05,2]
[355951752,1741729833100,-1086.5,8.988e-05,2]
[355951753,1741729833110,-500.0,8.988e-05,2]
[355951754,1741729833120,-500.0,8.988e-05,2]
[355951755,1741729833130,-525.59,8.988e-05,2]
[355951756,1741729833140,-192.86025495,8.988e-05,2]
[355951757,1741729833169,-307.13974505,8.988e-05,2]
[355951758,1741729833179,-500.0,8.988e-05,2]
[355951759,1741729833189,-500.0,8.988e-05,2]
[355951760,1741729833198,-143.5631079,8.988e-05,2]
[355951761,1741729833210,-356.4368921,8.988e-05,2]
[355951762,1741729833220,-304.24707865,8.988e-05,2]
[355951772,1741729838042,-195.75292135,8.988e-05,2]
[355951773,1741729838052,-520.99,8.988e-05,2]
[355951774,1741729838062,-550.0,9e-05,2]
[355951775,1741729838071,-182.69,9.079e-05,2]
[355951776,1741729838080,-550.0,9.13e-05,2]
[355951777,1741729838090,-150.99,9.13e-05,2]
[355951778,1741729838099,-152.52,9.13e-05,2]
[355951779,1741729838109,-1423.66,9.13e-05,2]
[355951780,1741729838118,-330.45,9.13e-05,2]
[355951781,1741729838128,-7038.49,9.13e-05,2]
[355951782,1741729838137,-241.24,9.13e-05,2]
[355951783,1741729838147,-999.99,9.13e-05,2]
[355951784,1741729838156,-8481.05947865,9.15e-05,2]
[355951972,1741729844235,-1163.35742022,9.15e-05,2]
[355951973,1741729844249,-1246.1584,9.159e-05,2]
[355951974,1741729844258,-732.7471,9.159e-05,2]
[355951975,1741729844267,-44206.2657,9.16e-05,2]
[355951976,1741729844276,-190.33697843,9.258e-05,2]
[355951977,1741729844286,-866.01,9.258e-05,2]
[355951978,1741729844295,-1102.95,9.258e-05,2]
[355951979,1741729844304,-609.27,9.258e-05,2]
[355951980,1741729844313,-500.0,9.258e-05,2]
[355951981,1741729844324,-500.0,9.258e-05,2]
[355951982,1741729844333,-500.0,9.258e-05,2]
[355951983,1741729844342,-500.0,9.258e-05,2]
[355951984,1741729844351,-942.35,9.258e-05,2]
[355951985,1741729844360,-1078.36,9.258e-05,2]
[355951986,1741729844369,-964.91,9.258e-05,2]
[355951987,1741729844379,-500.0,9.258e-05,2]
[355951988,1741729844387,-500.0,9.258e-05,2]
[355951989,1741729844396,-1016.93,9.258e-05,2]
[355951990,1741729844405,-576.33,9.258e-05,2]
[355951991,1741729844415,-655.01,9.258e-05,2]
[355951992,1741729844425,-500.0,9.258e-05,2]
[355951993,1741729844435,-538.33,9.258e-05,2]
[355951994,1741729844444,-612.45,9.258e-05,2]
[355951995,1741729844453,-500.0,9.258e-05,2]
[355951996,1741729844462,-605.87,9.258e-05,2]
[355951997,1741729844471,-500.0,9.258e-05,2]
[355951998,1741729844480,-500.0,9.258e-05,2]
[355951999,1741729844490,-540.49,9.258e-05,2]
[355952000,1741729844501,-500.0,9.258e-05,2]
[355952001,1741729844511,-1042.95,9.258e-05,2]
[355952002,1741729844520,-500.0,9.258e-05,2]
[355952003,1741729844529,-529.95,9.258e-05,2]
[355952004,1741729844539,-500.0,9.258e-05,2]
[355952005,1741729844548,-621.89,9.258e-05,2]
[355952006,1741729844557,-500.0,9.258e-05,2]
[355952007,1741729844566,-646.97,9.258e-05,2]
[355952008,1741729844576,-503.24,9.258e-05,2]
[355952009,1741729844585,-500.0,9.258e-05,2]
[355952010,1741729844594,-500.0,9.258e-05,2]
[355952011,1741729844604,-500.0,9.258e-05,2]
[355952012,1741729844613,-1102.66,9.258e-05,2]
[355952013,1741729844622,-652.99,9.258e-05,2]
[355952014,1741729844632,-1117.99,9.258e-05,2]
[355952015,1741729844641,-623.33,9.258e-05,2]
[355952016,1741729844650,-500.0,9.258e-05,2]
[355952017,1741729844659,-500.0,9.258e-05,2]
[355952018,1741729844669,-828.18,9.258e-05,2]
[355952019,1741729844679,-500.0,9.258e-05,2]
[355952020,1741729844688,-500.0,9.258e-05,2]
[355952021,1741729844698,-500.0,9.258e-05,2]
[355952022,1741729844707,-500.0,9.258e-05,2]
[355952023,1741729844717,-500.0,9.258e-05,2]
[355952024,1741729844727,-500.0,9.258e-05,2]
[355952025,1741729844736,-500.0,9.258e-05,2]
[355952026,1741729844746,-500.0,9.258e-05,2]
[355952027,1741729844755,-715.14,9.258e-05,2]
[355952028,1741729844765,-552.81,9.258e-05,2]
[355952029,1741729844774,-500.0,9.258e-05,2]
[355952030,1741729844783,-789.98,9.258e-05,2]
[355952031,1741729844793,-500.0,9.258e-05,2]
[355952032,1741729844802,-500.0,9.258e-05,2]
[355952033,1741729844812,-500.0,9.258e-05,2]
[355952034,1741729844821,-610.83334494,9.258e-05,2]
[355952035,1741729844830,-1068.56,9.258e-05,2]
[355952036,1741729844839,-500.0,9.258e-05,2]
[355952037,1741729844848,-778.85,9.258e-05,2]
[355952038,1741729844858,-500.0,9.258e-05,2]
[355952039,1741729844867,-1625.59,9.258e-05,2]
[355952040,1741729844876,-500.0,9.258e-05,2]
[355952041,1741729844886,-1129.48,9.258e-05,2]
[355952042,1741729844895,-500.0,9.258e-05,2]
[355952043,1741729844904,-1080.01,9.258e-05,2]
[355952044,1741729844913,-500.0,9.258e-05,2]
[355952045,1741729844923,-500.0,9.258e-05,2]
[355952046,1741729844932,-715.14,9.258e-05,2]
[355952047,1741729844941,-936.8,9.258e-05,2]
[355952048,1741729844951,-500.0,9.258e-05,2]
[355952049,1741729844960,-1023.44,9.258e-05,2]
[355952050,1741729844970,-886.39,9.258e-05,2]
[355952051,1741729844979,-500.0,9.258e-05,2]
[355952052,1741729844988,-475.9,9.258e-05,2]
[355952053,1741729844997,-500.0,9.258e-05,2]
[355952054,1741729845007,-500.0,9.258e-05,2]
[355952055,1741729845016,-410.67706327,9.258e-05,2]
[355952056,1741729845025,-500.0,9.258e-05,2]
[355952057,1741729845034,-500.0,9.258e-05,2]
[355952058,1741729845043,-500.0,9.258e-05,2]
[355952059,1741729845052,-500.0,9.258e-05,2]
[355952060,1741729845062,-500.0,9.258e-05,2]
[355952061,1741729845071,-500.0,9.258e-05,2]
[355952062,1741729845080,-500.0,9.258e-05,2]
[355952063,1741729845089,-500.0,9.258e-05,2]
[355952064,1741729845098,-596.79,9.258e-05,2]
[355952065,1741729845107,-500.0,9.258e-05,2]
[355952066,1741729845117,-500.0,9.258e-05,2]
[355952067,1741729845126,-500.0,9.258e-05,2]
[355952068,1741729845135,-545.47,9.258e-05,2]
[355952069,1741729845144,-500.0,9.258e-05,2]
[355952070,1741729845153,-2335.75,9.258e-05,2]
[355952071,1741729845162,-500.0,9.258e-05,2]
[355952072,1741729845171,-500.0,9.258e-05,2]
[355952073,1741729845181,-1345.08,9.258e-05,2]
[355952074,1741729845191,-1026.1,9.258e-05,2]
[355952075,1741729845200,-500.0,9.258e-05,2]
[355952076,1741729845209,-776.56,9.258e-05,2]
[355952077,1741729845219,-500.0,9.258e-05,2]
[355952078,1741729845228,-500.0,9.258e-05,2]
[355952079,1741729845238,-500.0,9.258e-05,2]
[355952080,1741729845249,-500.0,9.258e-05,2]
[355952081,1741729845259,-500.0,9.258e-05,2]
[355952082,1741729845268,-1036.42,9.258e-05,2]
[355952083,1741729845279,-500.0,9.258e-05,2]
[355952084,1741729845288,-500.0,9.258e-05,2]
[355952085,1741729845297,-500.0,9.258e-05,2]
[355952086,1741729845306,-769.0,9.258e-05,2]
[355952087,1741729845315,-1147.61,9.258e-05,2]
[355952088,1741729845327,-537.68,9.258e-05,2]
[355952089,1741729845336,-1070.49,9.258e-05,2]
[355952090,1741729845572,-1484.39,9.258e-05,2]
[355952091,1741729845581,-500.0,9.258e-05,2]
[355952092,1741729845591,-573.2,9.258e-05,2]
[355952093,1741729845600,-500.0,9.258e-05,2]
[355952094,1741729845609,-500.0,9.258e-05,2]
[355952095,1741729845619,-500.0,9.258e-05,2]
[355952096,1741729845628,-500.0,9.258e-05,2]
[355952097,1741729845637,-695.86,9.258e-05,2]
[355952098,1741729845646,-565.64,9.258e-05,2]
[355952099,1741729845655,-665.11,9.258e-05,2]
[355952100,1741729845664,-500.0,9.258e-05,2]
[355952101,1741729845673,-500.0,9.258e-05,2]
[355952102,1741729845682,-572.91,9.258e-05,2]
[355952103,1741729845692,-575.45,9.258e-05,2]
[355952104,1741729845701,-846.4,9.258e-05,2]
[355952105,1741729845711,-511.17,9.258e-05,2]
[355952106,1741729845720,-500.0,9.258e-05,2]
[355952107,1741729845729,-500.0,9.258e-05,2]
[355952108,1741729845739,-500.0,9.258e-05,2]
[355952109,1741729845750,-500.0,9.258e-05,2]
[355952110,1741729845760,-500.0,9.258e-05,2]
[355952111,1741729845769,-500.0,9.258e-05,2]
[355952112,1741729845779,-847.34,9.258e-05,2]
[355952113,1741729845788,-500.0,9.258e-05,2]
[355952114,1741729845797,-500.0,9.258e-05,2]
[355952115,1741729845807,-500.0,9.258e-05,2]
[355952116,1741729845816,-251.48115153,9.258e-05,2]
[355952117,1741729845825,-500.0,9.258e-05,2]
[355952118,1741729845835,-500.0,9.258e-05,2]
[355952119,1741729845844,-656.53,9.258e-05,2]
[355952120,1741729845853,-500.0,9.258e-05,2]
[355952121,1741729845862,-970.55,9.258e-05,2]
[355952122,1741729845871,-500.0,9.258e-05,2]
[355952123,1741729845881,-1829.21,9.258e-05,2]
[355952124,1741729845890,-500.0,9.258e-05,2]
[355952125,1741729845900,-500.0,9.258e-05,2]
[355952126,1741729845909,-906.04,9.258e-05,2]
[355952127,1741729845918,-592.45,9.258e-05,2]
[355952128,1741729845928,-500.0,9.258e-05,2]
[355952129,1741729845937,-500.0,9.258e-05,2]
[355952130,1741729845946,-847.1,9.258e-05,2]
[355952131,1741729845955,-500.0,9.258e-05,2]
[355952132,1741729845964,-639.2,9.258e-05,2]
[355952133,1741729845974,-500.0,9.258e-05,2]
[355952134,1741729845983,-560.27,9.258e-05,2]
[355952135,1741729845992,-566.12,9.258e-05,2]
[355952136,1741729846001,-500.0,9.258e-05,2]
[355952137,1741729846011,-890.26,9.258e-05,2]
[355952138,1741729846020,-511.12,9.258e-05,2]
[355952139,1741729846030,-1045.5,9.258e-05,2]
[355952140,1741729846039,-500.0,9.258e-05,2]
[355952141,1741729846048,-500.0,9.258e-05,2]
[355952142,1741729846058,-500.0,9.259e-05,2]
[355952143,1741729846068,-500.0,9.259e-05,2]
[355952144,1741729846078,-500.0,9.259e-05,2]
[355952145,1741729846087,-515.61,9.259e-05,2]
[355952146,1741729846096,-500.0,9.259e-05,2]
[355952147,1741729846106,-347.03737015,9.259e-05,2]
[355952148,1741729846115,-500.0,9.259e-05,2]
[355952149,1741729846124,-500.0,9.259e-05,2]
[355952151,1741729846134,-500.0,9.259e-05,2]
[355952153,1741729846143,-500.0,9.259e-05,2]
[355952155,1741729846152,-500.0,9.259e-05,2]
[355952156,1741729846162,-500.0,9.259e-05,2]
[355952158,1741729846171,-500.0,9.259e-05,2]
[355952160,1741729846180,-500.0,9.259e-05,2]
[355952162,1741729846189,-745.11,9.259e-05,2]
[355952163,1741729846199,-500.0,9.259e-05,2]
[355952164,1741729846208,-797.08,9.259e-05,2]
[355952165,1741729846216,-448.4399275,9.259e-05,2]
[355952166,1741729846225,-500.0,9.259e-05,2]
[355952167,1741729846235,-563.26,9.259e-05,2]
[355952168,1741729846247,-638.97,9.259e-05,2]
[355952170,1741729846257,-500.0,9.259e-05,2]
[355952172,1741729846266,-889.44,9.259e-05,2]
[355952173,1741729846275,-500.0,9.259e-05,2]
[355952174,1741729846285,-500.0,9.259e-05,2]
[355952175,1741729846294,-500.0,9.259e-05,2]
[355952176,1741729846303,-500.0,9.259e-05,2]
[355952177,1741729846313,-500.0,9.259e-05,2]
[355952178,1741729846322,-500.0,9.259e-05,2]
[355952179,1741729846331,-500.0,9.259e-05,2]
[355952180,1741729846340,-500.0,9.259e-05,2]
[355952181,1741729846349,-500.0,9.259e-05,2]
[355952182,1741729846358,-500.0,9.259e-05,2]
[355952183,1741729846367,-1007.62,9.259e-05,2]
[355952184,1741729846376,-500.0,9.259e-05,2]
[355952185,1741729846386,-911.32,9.259e-05,2]
[355952186,1741729846395,-500.0,9.259e-05,2]
[355952187,1741729846404,-500.0,9.259e-05,2]
[355952188,1741729846414,-500.0,9.259e-05,2]
[355952189,1741729846424,-500.0,9.259e-05,2]
[355952190,1741729846433,-995.82,9.259e-05,2]
[355952191,1741729846443,-500.0,9.259e-05,2]
[355952192,1741729846452,-500.0,9.259e-05,2]
[355952193,1741729846462,-500.0,9.259e-05,2]
[355952194,1741729846471,-500.0,9.259e-05,2]
[355952195,1741729846480,-500.0,9.259e-05,2]
[355952196,1741729846494,-500.0,9.259e-05,2]
[355952197,1741729846504,-754.63,9.259e-05,2]
[355952198,1741729846514,-500.0,9.259e-05,2]
[355952199,1741729846523,-500.0,9.259e-05,2]
[355952200,1741729846532,-500.0,9.259e-05,2]
[355952201,1741729846541,-500.0,9.259e-05,2]
[355952202,1741729846551,-500.0,9.259e-05,2]
[355952203,1741729846560,-440.89446823,9.259e-05,2]
[355952204,1741729846569,-500.0,9.259e-05,2]
[355952205,1741729846579,-855.43,9.259e-05,2]
[355952206,1741729846588,-1180.78,9.259e-05,2]
[355952207,1741729846597,-812.48,9.259e-05,2]
[355952208,1741729846607,-500.0,9.259e-05,2]
[355952209,1741729846616,-500.0,9.259e-05,2]
[355952210,1741729846626,-500.0,9.259e-05,2]
[355952211,1741729846635,-500.0,9.259e-05,2]
[355952212,1741729846645,-500.0,9.259e-05,2]
[355952213,1741729846655,-500.0,9.259e-05,2]
[355952214,1741729846664,-500.0,9.259e-05,2]
[355952215,1741729846674,-759.41,9.259e-05,2]
[355952216,1741729846684,-500.0,9.259e-05,2]
[355952217,1741729846693,-500.0,9.259e-05,2]
[355952218,1741729846703,-945.75,9.259e-05,2]
[355952219,1741729846712,-598.18,9.259e-05,2]
[355952220,1741729846721,-1110.89,9.259e-05,2]
[355952221,1741729846731,-500.0,9.259e-05,2]
[355952222,1741729846740,-577.04,9.259e-05,2]
[355952223,1741729846750,-500.0,9.259e-05,2]
[355952224,1741729846759,-500.0,9.259e-05,2]
[355952225,1741729846769,-500.0,9.259e-05,2]
[355952226,1741729846778,-500.0,9.259e-05,2]
[355952227,1741729846787,-500.0,9.259e-05,2]
[355952228,1741729846796,-634.13,9.259e-05,2]
[355952229,1741729846805,-500.0,9.259e-05,2]
[355952230,1741729846815,-636.4,9.259e-05,2]
[355952231,1741729846824,-500.0,9.259e-05,2]
[355952232,1741729846833,-500.0,9.259e-05,2]
[355952233,1741729846843,-500.0,9.259e-05,2]
[355952234,1741729846852,-500.0,9.259e-05,2]
[355952235,1741729846861,-506.43340478,9.259e-05,2]
[355952236,1741729846870,-804.01,9.259e-05,2]
[355952237,1741729846880,-505.79039243,9.259e-05,2]
[355952238,1741729846889,-500.0,9.259e-05,2]
[355952239,1741729846898,-500.0,9.259e-05,2]
[355952240,1741729846908,-2736.12,9.259e-05,2]
[355952241,1741729846917,-500.0,9.259e-05,2]
[355952242,1741729846926,-201.04647473,9.259e-05,2]
[355952243,1741729846935,-847.3,9.259e-05,2]
[355952244,1741729846945,-500.0,9.259e-05,2]
[355952245,1741729846955,-172.47219945,9.259e-05,2]
[355952246,1741729846963,-500.0,9.259e-05,2]
[355952247,1741729846973,-500.0,9.259e-05,2]
[355952248,1741729846982,-365.06742124,9.259e-05,2]
[355952249,1741729846992,-1015.46,9.259e-05,2]
[355952250,1741729847002,-697.49,9.259e-05,2]
[355952251,1741729847012,-500.0,9.259e-05,2]
[355952252,1741729847022,-500.0,9.259e-05,2]
[355952253,1741729847031,-516.07,9.259e-05,2]
[355952254,1741729847040,-1110.45,9.259e-05,2]
[355952255,1741729847049,-699.16,9.259e-05,2]
[355952256,1741729847058,-1005.51,9.259e-05,2]
[355952257,1741729847068,-889.97,9.259e-05,2]